fUSD/lending_fUSD_20250716
["ID","MTS","AMOUNT","RATE_DAILY","PERIOD"]
[372474115,1752658257087,-716.54,0.00021917,2]
[372474116,1752658257096,-460.0,0.00021917,2]
[372474117,1752658257106,-460.0,0.00021917,2]
[372474118,1752658257117,-2553.6,0.00021917,2]
[372474119,1752658257127,-3263.55,0.00021917,2]
[372474120,1752658257136,-460.0,0.00021917,2]
[372474121,1752658257146,-460.0,0.00021917,2]
[372474122,1752658257156,-1299.84,0.00021917,2]
[372474123,1752658257166,-460.0,0.00021917,2]
[372474124,1752658257175,-460.0,0.00021917,2]
[372474125,1752658257185,-171.76906243,0.00021917,2]
[372474126,1752658257194,-550.67709717,0.00021917,2]
[372474127,1752658257204,-2879.18,0.00021917,2]
[372474128,1752658257214,-670.4,0.00021917,2]
[372474129,1752658257224,-1441.77,0.00021917,2]
[372474130,1752658257234,-460.0,0.00021917,2]
[372474131,1752658257244,-460.0,0.00021917,2]
[372474132,1752658257255,-460.0,0.00021917,2]
[372474133,1752658257264,-460.0,0.00021917,2]
[372474134,1752658257274,-1751.97,0.00021917,2]
[372474135,1752658257284,-460.0,0.00021917,2]
[372474136,1752658257294,-460.0,0.00021917,2]
[372474137,1752658257303,-460.0,0.00021917,2]
[372474138,1752658257313,-463.21,0.00021917,2]
[372474139,1752658257323,-151.0,0.00021917,2]
[372474140,1752658257333,-461.37196757,0.00021917,2]
[372474141,1752658257343,-460.0,0.00021917,2]
[372474142,1752658257352,-151.0,0.00021917,2]
[372474143,1752658257362,-151.0,0.00021917,2]
[372474144,1752658257371,-151.0,0.00021917,2]
[372474145,1752658257381,-942.15,0.00021917,2]
[372474146,1752658257391,-460.0,0.00021917,2]
[372474147,1752658257401,-151.0,0.00021917,2]
[372474148,1752658257410,-460.0,0.00021917,2]
[372474149,1752658257420,-460.0,0.00021917,2]
[372474150,1752658257429,-460.0,0.00021917,2]
[372474151,1752658257439,-151.0,0.00021917,2]
[372474152,1752658257448,-558.47,0.00021917,2]
[372474153,1752658257458,-460.0,0.00021917,2]
[372474154,1752658257467,-460.0,0.00021917,2]
[372474155,1752658257477,-1028.25,0.00021917,2]
[372474156,1752658257486,-460.0,0.00021917,2]
[372474157,1752658257496,-1005.75,0.00021917,2]
[372474158,1752658257506,-460.0,0.00021917,2]
[372474159,1752658257515,-856.94,0.00021917,2]
[372474160,1752658257525,-460.0,0.00021917,2]
[372474161,1752658257534,-460.0,0.00021917,2]
[372474162,1752658257543,-464.58,0.00021917,2]
[372474163,1752658257553,-460.0,0.00021917,2]
[372474164,1752658257563,-500.0,0.00021917,2]
[372474165,1752658257575,-463.10053598,0.00021917,2]
[372474166,1752658257590,-500.0,0.00021917,2]
[372474167,1752658257600,-1702.52,0.00021917,2]
[372474168,1752658257609,-500.0,0.00021917,2]
[372474169,1752658257619,-500.0,0.00021917,2]
[372474170,1752658257629,-500.0,0.00021917,2]
[372474171,1752658257638,-500.0,0.00021917,2]
[372474172,1752658257648,-500.0,0.00021917,2]
[372474173,1752658257658,-500.0,0.00021917,2]
[372474174,1752658257668,-1372.77,0.00021917,2]
[372474175,1752658257677,-498.23,0.00021917,2]
[372474176,1752658257687,-460.0,0.00021917,2]
[372474177,1752658257697,-1438.38,0.00021917,2]
[372474178,1752658257707,-460.0,0.00021917,2]
[372474179,1752658257717,-460.0,0.00021917,2]
[372474180,1752658257731,-3301.8,0.00021917,2]
[372474181,1752658257741,-3721.71,0.00021917,2]
[372474182,1752658257751,-151.0,0.00021917,2]
[372474183,1752658257760,-460.0,0.00021917,2]
[372474184,1752658257770,-968.64,0.00021917,2]
[372474185,1752658257780,-888.88,0.00021917,2]
[372474186,1752658257789,-682.41,0.00021917,2]
[372474187,1752658257799,-151.0,0.00021917,2]
[372474188,1752658257809,-612.62,0.00021917,2]
[372474189,1752658257818,-151.0,0.00021917,2]
[372474190,1752658257827,-460.0,0.00021917,2]
[372474191,1752658257837,-151.0,0.00021917,2]
[372474192,1752658257846,-291.567719,0.00021917,2]
[372474193,1752658257856,-508.43,0.00021917,2]
[372474194,1752658257866,-1151.05,0.00021917,2]
[372474195,1752658257876,-151.0,0.00021917,2]
[372474196,1752658257885,-1265.63,0.00021917,2]
[372474197,1752658257895,-460.0,0.00021917,2]
[372474198,1752658257904,-151.0,0.00021917,2]
[372474199,1752658257914,-461.96592007,0.00021917,2]
[372474200,1752658257923,-760.3,0.00021917,2]
[372474201,1752658257932,-460.0,0.00021917,2]
[372474202,1752658257942,-460.0,0.00021917,2]
[372474203,1752658257951,-460.0,0.00021917,2]
[372474204,1752658257960,-461.15765315,0.00021917,2]
[372474205,1752658257970,-693.74,0.00021917,2]
[372474206,1752658257980,-460.0,0.00021917,2]
[372474207,1752658257989,-1045.83,0.00021917,2]
[372474208,1752658257999,-460.0,0.00021917,2]
[372474209,1752658258017,-460.0,0.00021917,2]
[372474210,1752658258028,-918.4,0.00021917,2]
[372474211,1752658258037,-2921.93,0.00021917,2]
[372474212,1752658258047,-546.7,0.00021917,2]
[372474213,1752658258056,-460.0,0.00021917,2]
[372474214,1752658258066,-2767.53,0.00021917,2]
[372474215,1752658258076,-460.0,0.00021917,2]
[372474216,1752658258086,-460.0,0.00021917,2]
[372474217,1752658258095,-460.0,0.00021917,2]
[372474218,1752658258105,-1496.68,0.00021917,2]
[372474219,1752658258115,-460.0,0.00021917,2]
[372474220,1752658258124,-461.4313427,0.00021917,2]
[372474221,1752658258134,-460.0,0.00021917,2]
[372474222,1752658258144,-460.0,0.00021917,2]
[372474223,1752658258155,-460.0,0.00021917,2]
[372474224,1752658258164,-460.0,0.00021917,2]
[372474225,1752658258174,-461.20398739,0.00021917,2]
[372474226,1752658258183,-1305.51,0.00021917,2]
[372474227,1752658258193,-2051.41,0.00021917,2]
[372474228,1752658258203,-1488.34,0.00021917,2]
[372474229,1752658258212,-460.0,0.00021917,2]
[372474230,1752658258222,-460.0,0.00021917,2]
[372474231,1752658258231,-505.86,0.00021917,2]
[372474232,1752658258241,-460.0,0.00021917,2]
[372474233,1752658258250,-461.82797936,0.00021917,2]
[372474234,1752658258260,-1177.02,0.00021917,2]
[372474235,1752658258270,-980.88,0.00021917,2]
[372474236,1752658258282,-460.88981099,0.00021917,2]
[372474237,1752658258294,-465.75,0.00021917,2]
[372474238,1752658258304,-460.0,0.00021917,2]
[372474239,1752658258314,-460.0,0.00021917,2]
[372474240,1752658258324,-460.0,0.00021917,2]
[372474241,1752658258334,-464.73,0.00021917,2]
[372474242,1752658258344,-460.0,0.00021917,2]
[372474243,1752658258354,-460.0,0.00021917,2]
[372474244,1752658258364,-461.71328183,0.00021917,2]
[372474245,1752658258374,-1025.95,0.00021917,2]
[372474246,1752658258384,-460.0,0.00021917,2]
[372474247,1752658258394,-1420.53,0.00021917,2]
[372474248,1752658258404,-2123.58,0.00021917,2]
[372474249,1752658258414,-871.64,0.00021917,2]
[372474250,1752658258424,-460.0,0.00021917,2]
[372474251,1752658258434,-460.0,0.00021917,2]
[372474252,1752658258443,-567.53,0.00021917,2]
[372474253,1752658258453,-460.0,0.00021917,2]
[372474254,1752658258463,-460.0,0.00021917,2]
[372474255,1752658258473,-460.43670233,0.00021917,2]
[372474256,1752658258483,-788.26,0.00021917,2]
[372474257,1752658258493,-1132.56,0.00021917,2]
[372474258,1752658258503,-2121.25,0.00021917,2]
[372474259,1752658258758,-460.0,0.00021917,2]
[372474260,1752658258769,-928.94,0.00021917,2]
[372474261,1752658258780,-460.0,0.00021917,2]
[372474262,1752658258792,-460.0,0.00021917,2]
[372474263,1752658258803,-1312.94,0.00021917,2]
[372474264,1752658258813,-460.0,0.00021917,2]
[372474265,1752658258823,-1499.59,0.00021917,2]
[372474266,1752658258834,-460.0,0.00021917,2]
[372474267,1752658258844,-1686.6,0.00021917,2]
[372474268,1752658258854,-460.0,0.00021917,2]
[372474269,1752658258864,-645.38,0.00021917,2]
[372474270,1752658258874,-1109.24,0.00021917,2]
[372474271,1752658258885,-460.0,0.00021917,2]
[372474272,1752658258895,-460.0,0.00021917,2]
[372474273,1752658258905,-2003.02,0.00021917,2]
[372474274,1752658258916,-564.77,0.00021917,2]
[372474275,1752658258926,-3332.87,0.00021917,2]
[372474276,1752658258936,-460.0,0.00021917,2]
[372474277,1752658258946,-460.0,0.00021917,2]
[372474278,1752658258955,-580.0,0.00021917,2]
[372474279,1752658258966,-460.0,0.00021917,2]
[372474280,1752658258976,-460.0,0.00021917,2]
[372474281,1752658258985,-460.0,0.00021917,2]
[372474282,1752658258996,-460.0,0.00021917,2]
[372474283,1752658259006,-602.88,0.00021917,2]
[372474284,1752658259016,-460.0,0.00021917,2]
[372474285,1752658259026,-500.0,0.00021917,2]
[372474286,1752658259036,-479.77,0.00021917,2]
[372474287,1752658259045,-500.0,0.00021917,2]
[372474288,1752658259055,-553.74843113,0.00021917,2]
[372474289,1752658259065,-500.0,0.00021917,2]
[372474290,1752658259075,-500.0,0.00021917,2]
[372474291,1752658259085,-500.0,0.00021917,2]
[372474292,1752658259096,-500.0,0.00021917,2]
[372474293,1752658259107,-500.0,0.00021917,2]
[372474294,1752658259117,-500.0,0.00021917,2]
[372474295,1752658259127,-502.84470366,0.00021917,2]
[372474296,1752658259137,-2646.72,0.00021917,2]
[372474297,1752658259146,-460.0,0.00021917,2]
[372474298,1752658259156,-974.5,0.00021917,2]
[372474299,1752658259166,-460.0,0.00021917,2]
[372474300,1752658259176,-543.21,0.00021917,2]
[372474301,1752658259186,-460.0,0.00021917,2]
[372474302,1752658259197,-460.0,0.00021917,2]
[372474303,1752658259207,-1054.9,0.00021917,2]
[372474304,1752658259216,-460.0,0.00021917,2]
[372474305,1752658259226,-464.07738992,0.00021917,2]
[372474306,1752658259236,-876.39,0.00021917,2]
[372474307,1752658259246,-686.97,0.00021917,2]
[372474308,1752658259256,-460.0,0.00021917,2]
[372474309,1752658259265,-460.0,0.00021917,2]
[372474310,1752658259275,-460.0,0.00021917,2]
[372474311,1752658259285,-460.0,0.00021917,2]
[372474312,1752658259295,-3511.97,0.00021917,2]
[372474313,1752658259304,-460.87566142,0.00021917,2]
[372474314,1752658259314,-460.0,0.00021917,2]
[372474315,1752658259324,-873.17,0.00021917,2]
[372474316,1752658259334,-460.0,0.00021917,2]
[372474317,1752658259343,-1920.46,0.00021917,2]
[372474318,1752658259353,-460.0,0.00021917,2]
[372474319,1752658259363,-460.0,0.00021917,2]
[372474320,1752658259373,-460.0,0.00021917,2]
[372474321,1752658259386,-460.0,0.00021917,2]
[372474322,1752658259396,-460.0,0.00021917,2]
[372474323,1752658259406,-1357.0,0.00021917,2]
[372474324,1752658259416,-338.13819307,0.00021917,2]
[372474325,1752658259426,-596.2,0.00021917,2]
[372474326,1752658259436,-460.0,0.00021917,2]
[372474327,1752658259445,-538.67018256,0.00021917,2]
[372474328,1752658259455,-599.64,0.00021917,2]
[372474329,1752658259465,-460.0,0.00021917,2]
[372474330,1752658259475,-1095.68,0.00021917,2]
[372474331,1752658259486,-478.16,0.00021917,2]
[372474332,1752658259496,-460.0,0.00021917,2]
[372474333,1752658259506,-1150.16,0.00021917,2]
[372474334,1752658259515,-1319.46,0.00021917,2]
[372474335,1752658259525,-460.0,0.00021917,2]
[372474336,1752658259535,-1012.13,0.00021917,2]
[372474337,1752658259544,-460.0,0.00021917,2]
[372474338,1752658259554,-463.42096573,0.00021917,2]
[372474339,1752658259564,-2014.06,0.00021917,2]
[372474340,1752658259573,-460.0,0.00021917,2]
[372474341,1752658259582,-1015.78,0.00021917,2]
[372474342,1752658259593,-460.0,0.00021917,2]
[372474343,1752658259606,-169.629455,0.00021917,2]
[372474344,1752658259618,-169.629455,0.00021917,2]
[372474345,1752658259628,-169.629455,0.00021917,2]
[372474346,1752658259638,-462.27567643,0.00021917,2]
[372474347,1752658259648,-500.0,0.00021917,2]
[372474348,1752658259657,-500.0,0.00021917,2]
[372474349,1752658259670,-169.629455,0.00021917,2]
[372474350,1752658259681,-500.0,0.00021917,2]
[372474351,1752658259691,-500.0,0.00021917,2]
[372474352,1752658259701,-169.629455,0.00021917,2]
[372474353,1752658259710,-500.0,0.00021917,2]
[372474354,1752658259721,-169.629455,0.00021917,2]
[372474355,1752658259732,-500.0,0.00021917,2]
[372474356,1752658259743,-500.0,0.00021917,2]
[372474357,1752658259752,-169.629455,0.00021917,2]
[372474358,1752658259762,-500.0,0.00021917,2]
[372474359,1752658259773,-460.0,0.00021917,2]
[372474360,1752658259783,-500.0,0.00021917,2]
[372474361,1752658259794,-500.0,0.00021917,2]
[372474362,1752658259803,-460.0,0.00021917,2]
[372474363,1752658259813,-500.0,0.00021917,2]
[372474364,1752658259823,-460.0,0.00021917,2]
[372474365,1752658259833,-354.29830149,0.00021917,2]
[372474366,1752658259843,-2830.41,0.00021917,2]
[372474367,1752658259853,-460.0,0.00021917,2]
[372474368,1752658259863,-460.0,0.00021917,2]
[372474369,1752658259873,-169.629455,0.00021917,2]
[372474370,1752658259884,-466.66,0.00021917,2]
[372474371,1752658259895,-169.629455,0.00021917,2]
[372474372,1752658259904,-169.629455,0.00021917,2]
[372474373,1752658259914,-169.629455,0.00021917,2]
[372474374,1752658259924,-460.0,0.00021917,2]
[372474375,1752658259933,-169.629455,0.00021917,2]
[372474376,1752658259943,-460.0,0.00021917,2]
[372474377,1752658259954,-169.629455,0.00021917,2]
[372474378,1752658259964,-169.629455,0.00021917,2]
[372474379,1752658259973,-460.0,0.00021917,2]
[372474380,1752658259982,-1235.09,0.00021917,2]
[372474381,1752658259992,-460.0,0.00021917,2]
[372474382,1752658260001,-460.0,0.00021917,2]
[372474383,1752658260011,-693.7,0.00021917,2]
[372474384,1752658260021,-3123.48,0.00021917,2]
[372474385,1752658260030,-1605.17,0.00021917,2]
[372474386,1752658260040,-465.10079346,0.00021917,2]
[372474387,1752658260050,-781.65,0.00021917,2]
[372474388,1752658260060,-360.4927758,0.00021917,2]
[372474389,1752658260071,-460.0,0.00021917,2]
[372474390,1752658260081,-460.0,0.00021917,2]
[372474391,1752658260091,-460.0,0.00021917,2]
[372474392,1752658260100,-1393.02,0.00021917,2]
[372474393,1752658260110,-460.0,0.00021917,2]
[372474394,1752658260120,-460.0,0.00021917,2]
[372474395,1752658260131,-460.0,0.00021917,2]
[372474396,1752658260141,-500.0,0.00021917,2]
[372474397,1752658260150,-500.0,0.00021917,2]
[372474398,1752658260160,-500.0,0.00021917,2]
[372474399,1752658260170,-500.0,0.00021917,2]
[372474400,1752658260179,-460.0,0.00021917,2]
[372474401,1752658260189,-460.0,0.00021917,2]
[372474402,1752658260199,-500.0,0.00021917,2]
[372474403,1752658260209,-500.0,0.00021917,2]
[372474404,1752658260218,-500.0,0.00021917,2]
[372474405,1752658260227,-595.49,0.00021917,2]
[372474406,1752658260237,-500.0,0.00021917,2]
[372474407,1752658260246,-460.0,0.00021917,2]
[372474408,1752658260256,-1607.13,0.00021917,2]
[372474409,1752658260266,-460.0,0.00021917,2]
[372474410,1752658260276,-500.0,0.00021917,2]
[372474411,1752658260285,-500.0,0.00021917,2]
[372474412,1752658260295,-282.7349704,0.00021917,2]
[372474413,1752658260305,-804.94,0.00021917,2]
[372474414,1752658260315,-460.0,0.00021917,2]
[372474415,1752658260325,-460.0,0.00021917,2]
[372474416,1752658260335,-460.0,0.00021917,2]
[372474417,1752658260345,-460.0,0.00021917,2]
[372474418,1752658260355,-301.717814,0.00021917,2]
[372474419,1752658260364,-603.04,0.00021917,2]
[372474420,1752658260375,-460.0,0.00021917,2]
[372474421,1752658260384,-505.59526122,0.00021917,2]
[372474422,1752658260394,-151.42354,0.00021917,2]
[372474423,1752658260404,-1185.75,0.00021917,2]
[372474424,1752658260413,-460.0,0.00021917,2]
[372474425,1752658260423,-460.0,0.00021917,2]
[372474426,1752658260432,-460.0,0.00021917,2]
[372474427,1752658260442,-543.91825323,0.00021917,2]
[372474428,1752658260452,-500.62057644,0.00021917,2]
[372474429,1752658260461,-748.62,0.00021917,2]
[372474430,1752658260471,-460.0,0.00021917,2]
[372474431,1752658260481,-460.0,0.00021917,2]
[372474432,1752658260491,-460.0,0.00021917,2]
[372474433,1752658260501,-460.0,0.00021917,2]
[372474434,1752658260512,-486.16,0.00021917,2]
[372474435,1752658260522,-1245.17,0.00021917,2]
[372474436,1752658260531,-1453.41,0.00021917,2]
[372474437,1752658260541,-460.0,0.00021917,2]
[372474438,1752658260550,-460.0,0.00021917,2]
[372474439,1752658260560,-630.58,0.00021917,2]
[372474440,1752658260570,-460.0,0.00021917,2]
[372474441,1752658260579,-460.0,0.00021917,2]
[372474442,1752658260589,-460.0,0.00021917,2]
[372474443,1752658260599,-6371.61,0.00021917,2]
[372474444,1752658260608,-460.0,0.00021917,2]
[372474445,1752658260618,-1181.67,0.00021917,2]
[372474446,1752658260628,-460.0,0.00021917,2]
[372474447,1752658260638,-460.0,0.00021917,2]
[372474448,1752658260648,-18504.59,0.00021917,2]
[372474449,1752658260657,-1135.57,0.00021917,2]
[372474450,1752658260667,-637.083823,0.00021917,2]
[372474451,1752658260676,-637.083823,0.00021917,2]
[372474452,1752658260686,-637.083823,0.00021917,2]
[372474453,1752658260697,-637.083823,0.00021917,2]
[372474454,1752658260706,-637.083823,0.00021917,2]
[372474455,1752658260716,-637.083823,0.00021917,2]
[372474456,1752658260729,-637.083823,0.00021917,2]
[372474457,1752658260738,-529.24,0.00021917,2]
[372474458,1752658260748,-460.0,0.00021917,2]
[372474459,1752658260758,-460.0,0.00021917,2]
[372474460,1752658260768,-577.12,0.00021917,2]
[372474461,1752658260777,-637.083823,0.00021917,2]
[372474462,1752658260787,-827.46,0.00021917,2]
[372474463,1752658260798,-1668.06,0.00021917,2]
[372474464,1752658260808,-637.083823,0.00021917,2]
[372474465,1752658260817,-151.0,0.00021917,2]
[372474466,1752658260827,-1869.63,0.00021917,2]
[372474467,1752658260836,-151.0,0.00021917,2]
[372474468,1752658260846,-637.083823,0.00021917,2]
[372474469,1752658260856,-637.083823,0.00021917,2]
[372474470,1752658260867,-637.083823,0.00021917,2]
[372474471,1752658260877,-151.0,0.00021917,2]
[372474472,1752658260888,-637.083823,0.00021917,2]
[372474473,1752658260897,-460.0,0.00021917,2]
[372474474,1752658260908,-1886.37,0.00021917,2]
[372474475,1752658260917,-637.083823,0.00021917,2]
[372474476,1752658261286,-5220.72,0.00021917,2]
[372474477,1752658261309,-151.0,0.00021917,2]
[372474478,1752658261319,-1064.23,0.00021917,2]
[372474479,1752658261329,-151.0,0.00021917,2]
[372474480,1752658261339,-151.0,0.00021917,2]
[372474481,1752658261348,-151.0,0.00021917,2]
[372474482,1752658261359,-500.0,0.00021917,2]
[372474483,1752658261368,-2292.74,0.00021917,2]
[372474484,1752658261378,-500.0,0.00021917,2]
[372474485,1752658261387,-500.0,0.00021917,2]
[372474486,1752658261397,-4317.42,0.00021917,2]
[372474487,1752658261407,-500.0,0.00021917,2]
[372474488,1752658261417,-500.0,0.00021917,2]
[372474489,1752658261426,-500.0,0.00021917,2]
[372474490,1752658261436,-500.0,0.00021917,2]
[372474491,1752658261446,-500.0,0.00021917,2]
[372474492,1752658261457,-475.91,0.00021917,2]
[372474493,1752658261468,-151.0,0.00021917,2]
[372474494,1752658261477,-500.0,0.00021917,2]
[372474495,1752658261487,-500.0,0.00021917,2]
[372474496,1752658261496,-151.0,0.00021917,2]
[372474497,1752658261506,-500.0,0.00021917,2]
[372474498,1752658261516,-507.0613143,0.00021917,2]
[372474499,1752658261525,-151.0,0.00021917,2]
[372474500,1752658261535,-460.0,0.00021917,2]
[372474501,1752658261545,-151.0,0.00021917,2]
[372474502,1752658261555,-460.0,0.00021917,2]
[372474503,1752658261565,-151.0,0.00021917,2]
[372474504,1752658261574,-460.0,0.00021917,2]
[372474505,1752658261584,-177.16867,0.00021917,2]
[372474506,1752658261593,-460.0,0.00021917,2]
[372474507,1752658261604,-460.0,0.00021917,2]
[372474508,1752658261613,-460.0,0.00021917,2]
[372474509,1752658261623,-460.0,0.00021917,2]
[372474510,1752658261633,-460.0,0.00021917,2]
[372474511,1752658261643,-500.0,0.00021917,2]
[372474512,1752658261653,-500.0,0.00021917,2]
[372474513,1752658261663,-500.0,0.00021917,2]
[372474514,1752658261673,-462.17036318,0.00021917,2]
[372474515,1752658261683,-500.0,0.00021917,2]
[372474516,1752658261692,-500.0,0.00021917,2]
[372474517,1752658261703,-500.0,0.00021917,2]
[372474518,1752658261713,-500.0,0.00021917,2]
[372474519,1752658261729,-500.0,0.00021917,2]
[372474520,1752658261745,-500.0,0.00021917,2]
[372474521,1752658261756,-500.0,0.00021917,2]
[372474522,1752658261766,-2132.04,0.00021917,2]
[372474523,1752658261777,-500.0,0.00021917,2]
[372474524,1752658261788,-460.0,0.00021917,2]
[372474525,1752658261803,-2581.72,0.00021917,2]
[372474526,1752658261814,-500.0,0.00021917,2]
[372474527,1752658261825,-11338.72,0.00021917,2]
[372474528,1752658261835,-500.0,0.00021917,2]
[372474529,1752658261845,-461.66072739,0.00021917,2]
[372474530,1752658261855,-500.0,0.00021917,2]
[372474531,1752658261865,-500.0,0.00021917,2]
[372474532,1752658261875,-500.0,0.00021917,2]
[372474533,1752658261886,-500.0,0.00021917,2]
[372474534,1752658261896,-500.0,0.00021917,2]
[372474535,1752658261906,-500.0,0.00021917,2]
[372474536,1752658261916,-150.0,0.00021917,2]
[372474537,1752658261926,-981.29,0.00021917,2]
[372474538,1752658261936,-500.0,0.00021917,2]
[372474539,1752658261946,-1734.88,0.00021917,2]
[372474540,1752658261956,-500.0,0.00021917,2]
[372474541,1752658261967,-500.0,0.00021917,2]
[372474542,1752658261979,-17700.65,0.00021917,2]
[372474543,1752658261989,-460.0,0.00021917,2]
[372474544,1752658261999,-500.0,0.00021917,2]
[372474545,1752658262008,-500.0,0.00021917,2]
[372474546,1752658262018,-500.0,0.00021917,2]
[372474547,1752658262028,-523.84,0.00021917,2]
[372474548,1752658262037,-500.0,0.00021917,2]
[372474549,1752658262047,-500.0,0.00021917,2]
[372474550,1752658262056,-771.45,0.00021917,2]
[372474551,1752658262066,-500.0,0.00021917,2]
[372474552,1752658262075,-460.0,0.00021917,2]
[372474553,1752658262085,-460.0,0.00021917,2]
[372474554,1752658262095,-673.57,0.00021917,2]
[372474555,1752658262105,-593.51,0.00021917,2]
[372474556,1752658262115,-460.0,0.00021917,2]
[372474557,1752658262125,-555.78,0.00021917,2]
[372474558,1752658262136,-460.0,0.00021917,2]
[372474559,1752658262146,-460.0,0.00021917,2]
[372474560,1752658262156,-785.47,0.00021917,2]
[372474561,1752658262166,-752.69,0.00021917,2]
[372474562,1752658262176,-493.21432492,0.00021917,2]
[372474563,1752658262185,-2863.84,0.00021917,2]
[372474564,1752658262195,-2341.1,0.00021917,2]
[372474565,1752658262205,-18355.92,0.00021917,2]
[372474566,1752658262214,-151.0,0.00021917,2]
[372474567,1752658262223,-151.0,0.00021917,2]
[372474568,1752658262233,-460.0,0.00021917,2]
[372474569,1752658262243,-151.0,0.00021917,2]
[372474570,1752658262252,-151.0,0.00021917,2]
[372474571,1752658262262,-159.92452,0.00021917,2]
[372474572,1752658262272,-737.1,0.00021917,2]
[372474573,1752658262282,-460.0,0.00021917,2]
[372474574,1752658262294,-460.0,0.00021917,2]
[372474575,1752658262304,-460.0,0.00021917,2]
[372474576,1752658262314,-13933.69,0.00021917,2]
[372474577,1752658262324,-460.0,0.00021917,2]
[372474578,1752658262333,-460.0,0.00021917,2]
[372474579,1752658262342,-460.0,0.00021917,2]
[372474580,1752658262352,-1554.01,0.00021917,2]
[372474581,1752658262362,-460.0,0.00021917,2]
[372474582,1752658262371,-460.0,0.00021917,2]
[372474583,1752658262381,-1141.14,0.00021917,2]
[372474584,1752658262391,-461.73,0.00021917,2]
[372474585,1752658262400,-1320.23,0.00021917,2]
[372474586,1752658262410,-460.0,0.00021917,2]
[372474587,1752658262420,-578.88,0.00021917,2]
[372474588,1752658262429,-1364.93,0.00021917,2]
[372474589,1752658262440,-460.0,0.00021917,2]
[372474590,1752658262450,-460.0,0.00021917,2]
[372474591,1752658262460,-477.31,0.00021917,2]
[372474592,1752658262472,-460.0,0.00021917,2]
[372474593,1752658262484,-1224.07,0.00021917,2]
[372474594,1752658262494,-2855.47,0.00021917,2]
[372474595,1752658262504,-460.0,0.00021917,2]
[372474596,1752658262514,-460.0,0.00021917,2]
[372474597,1752658262524,-460.0,0.00021917,2]
[372474598,1752658262534,-460.0,0.00021917,2]
[372474599,1752658262544,-20901.43,0.00021917,2]
[372474600,1752658262555,-460.0,0.00021917,2]
[372474601,1752658262565,-151.0,0.00021917,2]
[372474602,1752658262577,-470.063432,0.00021917,2]
[372474603,1752658262587,-151.0,0.00021917,2]
[372474604,1752658262599,-2023.43,0.00021917,2]
[372474605,1752658262610,-460.0,0.00021917,2]
[372474606,1752658262620,-151.0,0.00021917,2]
[372474607,1752658262630,-155.461104,0.00021917,2]
[372474608,1752658262640,-460.0,0.00021917,2]
[372474609,1752658262649,-460.0,0.00021917,2]
[372474610,1752658262659,-460.0,0.00021917,2]
[372474611,1752658262669,-2247.01,0.00021917,2]
[372474612,1752658262678,-460.0,0.00021917,2]
[372474613,1752658262688,-460.0,0.00021917,2]
[372474614,1752658262697,-460.0,0.00021917,2]